fUSD/lending_fUSD_20240919
["ID","MTS","AMOUNT","RATE_DAILY","PERIOD"]
[338551502,1726731040134,-500.0,0.00012889,2]
[338551503,1726731040144,-980.34,0.00012889,2]
[338551504,1726731040153,-579.61,0.00012889,2]
[338551505,1726731040163,-500.0,0.00012889,2]
[338551506,1726731040172,-500.0,0.00012889,2]
[338551507,1726731040181,-1026.04,0.00012889,2]
[338551508,1726731040191,-703.89,0.00012889,2]
[338551509,1726731040201,-500.0,0.00012889,2]
[338551510,1726731040210,-546.7,0.00012889,2]
[338551511,1726731040219,-500.0,0.00012889,2]
[338551512,1726731040230,-908.38,0.00012889,2]
[338551513,1726731040239,-1358.67,0.00012889,2]
[338551514,1726731040248,-642.24857488,0.00012889,2]
[338551515,1726731040258,-500.0,0.00012889,2]
[338551516,1726731040268,-500.0,0.00012889,2]
[338551517,1726731040277,-647.82,0.00012889,2]
[338551518,1726731040287,-576.79,0.00012889,2]
[338551519,1726731040296,-500.0,0.00012889,2]
[338551520,1726731040305,-500.0,0.00012889,2]
[338551521,1726731040314,-500.0,0.00012889,2]
[338551522,1726731040324,-519.41,0.00012889,2]
[338551523,1726731040333,-500.0,0.00012889,2]
[338551524,1726731040342,-500.0,0.00012889,2]
[338551525,1726731040352,-968.43,0.00012889,2]
[338551526,1726731040361,-527.37,0.00012889,2]
[338551527,1726731040370,-500.0,0.00012889,2]
[338551528,1726731040379,-835.93,0.00012889,2]
[338551529,1726731040388,-500.0,0.00012889,2]
[338551530,1726731040398,-500.0,0.00012889,2]
[338551532,1726731040408,-568.58,0.00012889,2]
[338551534,1726731040417,-1087.63,0.00012889,2]
[338551536,1726731040426,-500.0,0.00012889,2]
[338551537,1726731040435,-500.0,0.00012889,2]
[338551538,1726731040444,-652.8,0.00012889,2]
[338551540,1726731040453,-654.68,0.00012889,2]
[338551542,1726731040462,-500.0,0.00012889,2]
[338551544,1726731040472,-738.42,0.00012889,2]
[338551546,1726731040482,-709.4,0.00012889,2]
[338551548,1726731040491,-510.34,0.00012889,2]
[338551550,1726731040500,-647.02,0.00012889,2]
[338551552,1726731040509,-807.28,0.00012889,2]
[338551554,1726731040519,-500.0,0.00012889,2]
[338551556,1726731040529,-1092.58,0.00012889,2]
[338551558,1726731040539,-500.0,0.00012889,2]
[338551560,1726731040548,-500.0,0.00012889,2]
[338551562,1726731040558,-940.38,0.00012889,2]
[338551564,1726731040567,-500.0,0.00012889,2]
[338551566,1726731040576,-500.0,0.00012889,2]
[338551568,1726731040586,-500.0,0.00012889,2]
[338551570,1726731040597,-1175.9,0.00012889,2]
[338551572,1726731040607,-1154.54,0.00012889,2]
[338551574,1726731040618,-500.0,0.00012889,2]
[338551576,1726731040627,-766.01,0.00012889,2]
[338551578,1726731040637,-841.49,0.00012889,2]
[338551580,1726731040646,-500.0,0.00012889,2]
[338551582,1726731040657,-500.0,0.00012889,2]
[338551584,1726731040666,-500.0,0.00012889,2]
[338551586,1726731040676,-500.0,0.00012889,2]
[338551588,1726731040685,-500.0,0.00012889,2]
[338551590,1726731040694,-500.0,0.00012889,2]
[338551592,1726731040704,-575.4,0.00012889,2]
[338551594,1726731040713,-500.0,0.00012889,2]
[338551596,1726731040723,-1351.71,0.00012889,2]
[338551597,1726731040732,-500.0,0.00012889,2]
[338551599,1726731040742,-500.0,0.00012889,2]
[338551601,1726731040752,-500.0,0.00012889,2]
[338551603,1726731040762,-500.0,0.00012889,2]
[338551605,1726731040772,-604.68,0.00012889,2]
[338551607,1726731040781,-1421.7,0.00012889,2]
[338551609,1726731040792,-2367.96,0.00012889,2]
[338551611,1726731040802,-500.0,0.00012889,2]
[338551613,1726731040811,-874.06,0.00012889,2]
[338551615,1726731040820,-500.0,0.00012889,2]
[338551617,1726731040828,-933.92,0.00012889,2]
[338551619,1726731040838,-1720.08,0.00012889,2]
[338551621,1726731040847,-500.0,0.00012889,2]
[338551623,1726731040858,-790.47,0.00012889,2]
[338551625,1726731040867,-500.0,0.00012889,2]
[338551626,1726731040876,-500.0,0.00012889,2]
[338551628,1726731040886,-506.91,0.00012889,2]
[338551630,1726731040896,-500.0,0.00012889,2]
[338551632,1726731040906,-500.0,0.00012889,2]
[338551634,1726731040915,-500.0,0.00012889,2]
[338551636,1726731040925,-2914.01,0.00012889,2]
[338551638,1726731040935,-500.0,0.00012889,2]
[338551640,1726731040944,-500.0,0.00012889,2]
[338551642,1726731040954,-500.0,0.00012889,2]
[338551644,1726731040964,-416.99850187,0.00012889,2]
[338551646,1726731040973,-500.0,0.00012889,2]
[338551648,1726731040983,-833.33,0.00012889,2]
[338551650,1726731040993,-500.0,0.00012889,2]
[338551652,1726731041003,-500.0,0.00012889,2]
[338551654,1726731041016,-2375.57,0.00012889,2]
[338551656,1726731041025,-500.0,0.00012889,2]
[338551658,1726731041035,-500.0,0.00012889,2]
[338551660,1726731041045,-1210.31,0.00012889,2]
[338551662,1726731041055,-1044.41,0.00012889,2]
[338551664,1726731041064,-500.0,0.00012889,2]
[338551666,1726731041073,-500.0,0.00012889,2]
[338551667,1726731041084,-799.9,0.00012889,2]
[338551669,1726731041093,-712.71,0.00012889,2]
[338551671,1726731041103,-500.0,0.00012889,2]
[338551674,1726731041113,-4902.36,0.00012889,2]
[338551676,1726731041122,-1250.75,0.00012889,2]
[338551677,1726731041132,-1536.15,0.00012889,2]
[338551679,1726731041142,-500.0,0.00012889,2]
[338551681,1726731041151,-500.0,0.00012889,2]
[338551683,1726731041161,-500.0,0.00012889,2]
[338551685,1726731041170,-500.0,0.00012889,2]
[338551687,1726731041180,-500.0,0.00012889,2]
[338551689,1726731041190,-1089.06,0.00012889,2]
[338551691,1726731041199,-352.91130713,0.00012889,2]
[338551693,1726731041208,-500.0,0.00012889,2]
[338551695,1726731041218,-784.38,0.00012889,2]
[338551697,1726731041227,-603.28,0.00012889,2]
[338551698,1726731041237,-870.38,0.00012889,2]
[338551700,1726731041246,-500.0,0.00012889,2]
[338551702,1726731041255,-557.19,0.00012889,2]
[338551704,1726731041265,-500.0,0.00012889,2]
[338551706,1726731041275,-621.17,0.00012889,2]
[338551708,1726731041284,-571.22,0.00012889,2]
[338551710,1726731041293,-500.0,0.00012889,2]
[338551712,1726731041303,-1018.9,0.00012889,2]
[338551714,1726731041312,-500.0,0.00012889,2]
[338551715,1726731041321,-500.0,0.00012889,2]
[338551717,1726731041331,-500.0,0.00012889,2]
[338551719,1726731041340,-1011.15,0.00012889,2]
[338551721,1726731041351,-500.0,0.00012889,2]
[338551723,1726731041360,-500.0,0.00012889,2]
[338551725,1726731041369,-500.0,0.00012889,2]
[338551727,1726731041379,-540.26,0.00012889,2]
[338551729,1726731041388,-522.62,0.00012889,2]
[338551731,1726731041397,-1646.74,0.00012889,2]
[338551732,1726731041406,-7226.5,0.00012889,2]
[338551734,1726731041416,-500.0,0.00012889,2]
[338551736,1726731041425,-500.0,0.00012889,2]
[338551738,1726731041435,-812.58,0.00012889,2]
[338551740,1726731041444,-500.0,0.00012889,2]
[338551742,1726731041454,-653.04,0.00012889,2]
[338551744,1726731041463,-1680.11,0.00012889,2]
[338551746,1726731041473,-500.0,0.00012889,2]
[338551748,1726731041483,-500.0,0.00012889,2]
[338551750,1726731041492,-500.0,0.00012889,2]
[338551752,1726731041502,-1682.57,0.00012889,2]
[338551753,1726731041512,-16287.96,0.00012889,2]
[338551755,1726731041523,-928.2,0.00012889,2]
[338551757,1726731041533,-500.0,0.00012889,2]
[338551759,1726731041543,-500.0,0.00012889,2]
[338551761,1726731041552,-1480.1,0.00012889,2]
[338551762,1726731041561,-2106.39,0.00012889,2]
[338551763,1726731041571,-500.0,0.00012889,2]
[338551764,1726731041580,-500.0,0.00012889,2]
[338551765,1726731041589,-500.0,0.00012889,2]
[338551766,1726731041598,-500.0,0.00012889,2]
[338551767,1726731041608,-500.0,0.00012889,2]
[338551768,1726731041617,-1520.26,0.00012889,2]
[338551769,1726731041627,-548.59,0.00012889,2]
[338551770,1726731041637,-521.92,0.00012889,2]
[338551771,1726731041646,-500.0,0.00012889,2]
[338551772,1726731041656,-374.87645646,0.00012889,2]
[338551773,1726731041666,-500.0,0.00012889,2]
[338551774,1726731041676,-732.88,0.00012889,2]
[338551775,1726731041685,-500.0,0.00012889,2]
[338551776,1726731041695,-500.0,0.00012889,2]
[338551777,1726731041705,-500.0,0.00012889,2]
[338551778,1726731041714,-500.0,0.00012889,2]
[338551779,1726731041724,-1805.01,0.00012889,2]
[338551780,1726731041733,-500.0,0.00012889,2]
[338551781,1726731041747,-1092.64,0.00012889,2]
[338551782,1726731041756,-585.44,0.00012889,2]
[338551783,1726731041767,-500.0,0.00012889,2]
[338551784,1726731041778,-500.0,0.00012889,2]
[338551785,1726731041787,-681.74,0.00012889,2]
[338551786,1726731041798,-500.0,0.00012889,2]
[338551787,1726731041807,-500.0,0.00012889,2]
[338551788,1726731041816,-1177.76,0.00012889,2]
[338551789,1726731041826,-500.0,0.00012889,2]
[338551790,1726731041835,-3999.11,0.00012889,2]
[338551791,1726731041844,-2150.1,0.00012889,2]
[338551792,1726731041854,-500.0,0.00012889,2]
[338551793,1726731041864,-1751.13,0.00012889,2]
[338551794,1726731041873,-500.0,0.00012889,2]
[338551795,1726731041883,-535.87,0.00012889,2]
[338551796,1726731041892,-537.82,0.00012889,2]
[338551797,1726731041902,-500.0,0.00012889,2]
[338551798,1726731041912,-2685.03,0.00012889,2]
[338551799,1726731041921,-1799.12,0.00012889,2]
[338551800,1726731041931,-500.0,0.00012889,2]
[338551801,1726731041940,-500.0,0.00012889,2]
[338551802,1726731041950,-247.57,0.00012889,2]
[338551803,1726731041959,-643.5,0.00012889,2]
[338551804,1726731041969,-500.0,0.00012889,2]
[338551805,1726731041978,-500.0,0.00012889,2]
[338551806,1726731041987,-500.0,0.00012889,2]
[338551807,1726731041996,-1471.91,0.00012889,2]
[338551808,1726731042009,-2469.71,0.00012889,2]
[338551809,1726731042019,-848.52,0.00012889,2]
[338551810,1726731042027,-4819.17,0.00012889,2]
[338551811,1726731042036,-500.0,0.00012889,2]
[338551812,1726731042045,-500.0,0.00012889,2]
[338551813,1726731042054,-500.0,0.00012889,2]
[338551814,1726731042063,-1612.89,0.00012889,2]
[338551815,1726731042072,-500.0,0.00012889,2]
[338551816,1726731042082,-827.0,0.00012889,2]
[338551817,1726731042091,-2573.95,0.00012889,2]
[338551818,1726731042100,-1192.08,0.00012889,2]
[338551819,1726731042109,-1141.86,0.00012889,2]
[338551820,1726731042119,-500.0,0.00012889,2]
[338551821,1726731042128,-1462.38,0.00012889,2]
[338551822,1726731042138,-500.0,0.00012889,2]
[338551823,1726731042147,-533.1,0.00012889,2]
[338551824,1726731042157,-500.0,0.00012889,2]
[338551825,1726731042166,-500.0,0.00012889,2]
[338551826,1726731042175,-1000.0,0.00012889,2]
[338551827,1726731042185,-1509.94,0.00012889,2]
[338551828,1726731042194,-3021.86,0.00012889,2]
[338551829,1726731042203,-737.32,0.00012889,2]
[338551830,1726731042213,-882.28,0.00012889,2]
[338551831,1726731042222,-541.11,0.00012889,2]
[338551832,1726731042231,-500.0,0.00012889,2]
[338551833,1726731042240,-216.60343472,0.00012889,2]
[338551834,1726731042250,-500.0,0.00012889,2]
[338551835,1726731042259,-738.3,0.00012889,2]
[338551836,1726731042269,-2247.98,0.00012889,2]
[338551837,1726731042279,-500.0,0.00012889,2]
[338551838,1726731042288,-846.22,0.00012889,2]
[338551839,1726731042298,-645.71,0.00012889,2]
[338551840,1726731042307,-1788.07,0.00012889,2]
[338551841,1726731042317,-500.0,0.00012889,2]
[338551842,1726731042327,-556.26,0.00012889,2]
[338551843,1726731042337,-544.05,0.00012889,2]
[338551844,1726731042347,-514.93,0.00012889,2]
[338551845,1726731042357,-793.5,0.00012889,2]
[338551846,1726731042366,-641.67,0.00012889,2]
[338551847,1726731042376,-3187.25,0.00012889,2]
[338551848,1726731042385,-500.0,0.00012889,2]
[338551849,1726731042395,-500.0,0.00012889,2]
[338551850,1726731042404,-500.0,0.00012889,2]
[338551851,1726731042414,-1153.66,0.00012889,2]
[338551852,1726731042423,-500.0,0.00012889,2]
[338551853,1726731042433,-500.0,0.00012889,2]
[338551854,1726731042443,-500.0,0.00012889,2]
[338551855,1726731042452,-500.0,0.00012889,2]
[338551856,1726731042461,-1979.22,0.00012889,2]
[338551857,1726731042471,-686.72,0.00012889,2]
[338551858,1726731042481,-1063.62,0.00012889,2]
[338551859,1726731042491,-500.0,0.00012889,2]
[338551860,1726731042500,-1006.01,0.00012889,2]
[338551862,1726731042510,-500.0,0.00012889,2]
[338551863,1726731042520,-500.0,0.00012889,2]
[338551865,1726731042529,-500.0,0.00012889,2]
[338551866,1726731042539,-859.55,0.00012889,2]
[338551867,1726731042548,-500.68,0.00012889,2]
[338551868,1726731042558,-500.0,0.00012889,2]
[338551869,1726731042568,-500.0,0.00012889,2]
[338551870,1726731042577,-1336.68,0.00012889,2]
[338551871,1726731042587,-511.78,0.00012889,2]
[338551872,1726731042597,-1805.56,0.00012889,2]
[338551873,1726731042606,-1323.47,0.00012889,2]
[338551874,1726731042615,-1488.93,0.00012889,2]
[338551875,1726731042624,-1144.3,0.00012889,2]
[338551876,1726731042633,-500.0,0.00012889,2]
[338551877,1726731042643,-500.0,0.00012889,2]
[338551878,1726731042653,-823.59,0.00012889,2]
[338551879,1726731042662,-529.44,0.00012889,2]
[338551880,1726731042671,-860.55,0.00012889,2]
[338551881,1726731042681,-1250.67,0.00012889,2]
[338551882,1726731042691,-500.0,0.00012889,2]
[338551883,1726731042700,-500.0,0.00012889,2]
[338551884,1726731042710,-954.31,0.00012889,2]
[338551885,1726731042719,-757.29,0.00012889,2]
[338551886,1726731042728,-500.0,0.00012889,2]
[338551887,1726731042738,-500.0,0.00012889,2]
[338551888,1726731042747,-1130.22,0.00012889,2]
[338551889,1726731042757,-500.0,0.00012889,2]
[338551893,1726731042775,-596.43,0.00012889,2]
[338551895,1726731042785,-500.0,0.00012889,2]
[338551897,1726731042794,-500.0,0.00012889,2]
[338551899,1726731042803,-500.0,0.00012889,2]
[338551901,1726731042814,-798.93,0.00012889,2]
[338551903,1726731042824,-701.25,0.00012889,2]
[338551905,1726731042833,-1340.61,0.00012889,2]
[338551907,1726731042843,-500.0,0.0001289,2]
[338551909,1726731042852,-500.0,0.0001289,2]
[338551910,1726731042861,-500.0,0.0001289,2]
[338551911,1726731042871,-500.0,0.0001289,2]
[338551912,1726731042881,-500.0,0.0001289,2]
[338551913,1726731042890,-500.0,0.0001289,2]
[338551914,1726731042900,-500.0,0.0001289,2]
[338551915,1726731042909,-500.0,0.0001289,2]
[338551916,1726731042918,-329.11819762,0.00012899,2]
[338551917,1726731042927,-1100.0,0.000129,4]
[338551918,1726731042937,-774.88140048,0.000129,2]
[338551919,1726731042946,-378.64775349,0.000129,2]
[338551920,1726731042955,-1165.19,0.000129,2]
[338551921,1726731042965,-160.74645545,0.00012924,2]
[338551922,1726731042974,-158.56691584,0.00012924,2]
[338551923,1726731042983,-1007.12,0.00012963,2]
[338551924,1726731042992,-500.0,0.00012973,2]
[338551925,1726731043004,-280.1,0.00012993,2]
[338551926,1726731043015,-1007.12,0.00012998,2]
[338551927,1726731043025,-1007.12,0.00012999,2]
[338551928,1726731043034,-1007.12,0.00012999,2]
[338551929,1726731043043,-1007.12,0.00012999,2]
[338551930,1726731043055,-1007.12,0.00012999,2]
[338551931,1726731043065,-1007.12,0.00012999,2]
[338551932,1726731043074,-1007.12,0.00012999,2]
[338551933,1726731043085,-1007.12,0.00012999,2]
[338551934,1726731043095,-1007.12,0.00012999,2]
[338551935,1726731043104,-1007.12,0.00012999,2]
[338551936,1726731043113,-1007.12,0.00012999,2]
[338551937,1726731043123,-1007.12,0.00012999,2]
[338551938,1726731043132,-500.0,0.00012999,2]
[338551939,1726731043142,-361.35858743,0.00012999,2]
[338551940,1726731043151,-500.0,0.00012999,2]
[338551941,1726731043161,-500.0,0.00012999,2]
[338551942,1726731043171,-500.0,0.00012999,2]
[338551943,1726731043180,-500.0,0.00012999,2]
[338551944,1726731043189,-500.0,0.00012999,2]
[338551945,1726731043199,-150.0,0.00012999,2]
[338551946,1726731043208,-1100.0,0.00013,2]
[338551947,1726731043218,-477226.19848814,0.00013,2]
[338551948,1726731043243,-955252.44831084,0.00013,2]
[338551967,1726731043683,-607.64675005,0.00012889,2]
[338551968,1726731043695,-200.47324995,0.00012889,2]
[338551969,1726731043705,-7771.42675006,0.00013,2]
[338551970,1726731043944,-6139.93073305,0.00013,2]
[338551971,1726731043956,-1180.22303273,0.00013,2]
[338551972,1726731043968,-376.955934,0.00013,2]
[338551973,1726731043987,-500.0,0.00013,2]
[338551974,1726731043999,-7701.58319048,0.00013,2]
[338551975,1726731044013,-1520.54503176,0.00013,2]
[338551976,1726731044025,-9599.89447516,0.00013,2]
[338551977,1726731044036,-1819.20996264,0.00013,2]
[338551978,1726731044048,-1657.8600997,0.00013,2]
[338551979,1726731044059,-623.52960307,0.00013,2]
[338551980,1726731044070,-6102.1638032,0.00013,2]
[338551981,1726731044081,-4564.99427688,0.00013,2]
[338551982,1726731044093,-419.77238971,0.00013,2]
[338551983,1726731044104,-1656.58520388,0.00013,2]
[338551984,1726731044115,-9681.60895399,0.00013,2]
[338551985,1726731044127,-2042.81024937,0.00013,2]
[338551986,1726731044138,-548.10622179,0.00013,2]
[338551987,1726731044149,-699.78547114,0.00013,2]
[338551988,1726731044162,-1424.0,0.00013,2]
[338551989,1726731044173,-276.91061512,0.00013,2]
[338551990,1726731044184,-38845.77453441,0.00013,2]
[338551991,1726731044195,-1216.15843688,0.00013,2]
[338551992,1726731044207,-1594.44684523,0.00013,2]
[338551993,1726731044218,-2926.4020911,0.00013,2]
[338551994,1726731044236,-4424.51532221,0.00013,2]
[338551995,1726731044248,-644.08472678,0.00013,2]
[338551996,1726731044260,-1003.50055156,0.00013,2]
[338551997,1726731044330,-215330.84965651,0.00013,2]
[338551998,1726731044339,-287721.50998549,0.00013,2]
[338551999,1726731044351,-26941.28639219,0.00013,2]
[338552000,1726731044363,-254764.04339533,0.00013,2]
[338552001,1726731044372,-4056.49750499,0.00013,2]
[338552002,1726731044382,-150.0,0.00013044,2]
[338552003,1726731044392,-47670.6128937,0.00013163,2]
[338552004,1726731044402,-500.0,0.00013163,2]
[338552005,1726731044412,-500.0,0.00013163,2]
[338552006,1726731044421,-597.2,0.00013163,2]
[338552007,1726731044431,-655.07,0.00013163,2]
[338552008,1726731044442,-500.0,0.00013163,2]
[338552009,1726731044451,-500.0,0.00013163,2]
[338552010,1726731044462,-500.0,0.00013163,2]
[338552011,1726731044472,-500.0,0.00013163,2]
[338552012,1726731044481,-500.0,0.00013163,2]
[338552013,1726731044491,-622.79,0.00013163,2]
[338552014,1726731044501,-500.0,0.00013163,2]
[338552015,1726731044511,-500.0,0.00013163,2]
[338552016,1726731044522,-508.38,0.00013163,2]
[338552017,1726731044532,-500.0,0.00013163,2]
[338552018,1726731044541,-500.0,0.00013163,2]
[338552019,1726731044550,-500.0,0.00013163,2]
[338552020,1726731044560,-500.0,0.00013163,2]
[338552021,1726731044570,-500.0,0.00013163,2]
[338552022,1726731044579,-500.0,0.00013163,2]
[338552023,1726731044589,-500.0,0.00013163,2]
[338552024,1726731044599,-500.0,0.00013163,2]
[338552025,1726731044608,-627.39,0.00013163,2]
[338552026,1726731044617,-862.68,0.00013163,2]
[338552027,1726731044627,-500.0,0.00013163,2]
[338552028,1726731044636,-500.0,0.00013163,2]
[338552029,1726731044646,-500.0,0.00013163,2]
[338552030,1726731044656,-500.0,0.00013163,2]
[338552031,1726731044665,-500.0,0.00013163,2]
[338552032,1726731044675,-719.01,0.00013163,2]
[338552033,1726731044686,-539.25,0.00013163,2]
[338552034,1726731044695,-500.0,0.00013163,2]
[338552035,1726731044704,-500.0,0.00013163,2]
[338552036,1726731044714,-500.0,0.00013163,2]
[338552037,1726731044724,-500.0,0.00013163,2]
[338552038,1726731044733,-536.25,0.00013163,2]
[338552039,1726731044742,-500.68702869,0.00013163,2]
[338552040,1726731044756,-107.90279555,0.00013163,2]
[338552041,1726731044766,-530.54,0.00013163,2]
[338552042,1726731044775,-485.57797883,0.00013163,2]
[338552043,1726731044866,250.0,0.00012288,2]
[338552044,1726731045181,-748.63230573,0.000129,2]
[338552045,1726731045193,-463.29586362,0.000129,2]
[338552046,1726731045204,-142.27660572,0.000129,2]
[338552047,1726731045214,-455.60202117,0.00013163,2]
[338552048,1726731045224,-500.0,0.00013163,2]
[338552049,1726731045234,-570.15,0.00013163,2]
[338552050,1726731045244,-500.0,0.00013163,2]
[338552051,1726731045254,-550.38,0.00013163,2]
[338552052,1726731045264,-502.08,0.00013163,2]
[338552053,1726731045276,-443.51137331,0.00013163,2]
[338552054,1726731045290,-56.48862669,0.00013163,2]
[338552055,1726731045300,-269.55896693,0.00013163,2]
[338552056,1726731045320,-474.38103307,0.00013163,2]
[338552057,1726731045331,-500.0,0.00013163,2]
[338552058,1726731045341,-596.1741446,0.00013163,2]
[338552059,1726731045353,-157.8958554,0.00013163,2]
[338552060,1726731045362,-500.0,0.00013163,2]
[338552061,1726731045372,-500.0,0.00013163,2]
[338552062,1726731045382,-231.1041446,0.00013163,2]
[338552063,1726731045394,-268.8958554,0.00013163,2]
[338552064,1726731045404,-43.2900351,0.00013163,2]
[338552065,1726731045416,-456.7099649,0.00013163,2]
[338552066,1726731045426,-165.5500351,0.00013163,2]
[338552067,1726731045438,-334.4499649,0.00013163,2]
[338552068,1726731045448,-500.0,0.00013163,2]
[338552069,1726731045457,-500.0,0.00013163,2]
[338552070,1726731045467,-264.63938429,0.00013163,2]
[338552071,1726731045479,-235.36061571,0.00013163,2]
[338552072,1726731045489,-500.0,0.00013163,2]
[338552073,1726731045498,-137.68092217,0.00013163,2]
[338552074,1726731045510,-362.31907783,0.00013163,2]
[338552075,1726731045523,-500.0,0.00013163,2]
[338552076,1726731045533,-122.75530606,0.00013163,2]
[338552077,1726731045544,-455.37695136,0.00013163,2]
[338552078,1726731045556,-292.25774258,0.00013163,2]
[338552079,1726731045567,-539.22676091,0.00013163,2]
[338552080,1726731045578,-102.96302658,0.00013163,2]
[338552081,1726731045588,-183.97324148,0.00013163,2]
[338552082,1726731045600,-238.64083025,0.00013163,2]
[338552083,1726731045609,-500.0,0.00013163,2]
[338552084,1726731045619,-500.0,0.00013163,2]
[338552085,1726731045629,-500.0,0.00013163,2]
[338552086,1726731045638,-500.0,0.00013163,2]
[338552087,1726731045648,-500.0,0.00013163,2]
[338552088,1726731045657,-500.0,0.00013163,2]
[338552089,1726731045667,-500.0,0.00013163,2]
[338552090,1726731045676,-552.03,0.00013163,2]
[338552091,1726731045686,-579.99,0.00013163,2]
[338552092,1726731045696,-658.85,0.00013163,2]
[338552093,1726731045705,-500.0,0.00013163,2]
[338552094,1726731045715,-500.0,0.00013163,2]
[338552095,1726731045726,-510.64,0.00013163,2]
[338552096,1726731045735,-371.83573903,0.00013163,2]
[338552097,1726731045747,-128.16426097,0.00013163,2]
[338552098,1726731045757,-576.81,0.00013163,2]
[338552099,1726731045766,-500.0,0.00013163,2]
[338552100,1726731045777,-42.76362664,0.00013163,2]
[338552101,1726731045788,-457.23637336,0.00013163,2]
[338552102,1726731045797,-500.0,0.00013163,2]
[338552103,1726731045807,-500.0,0.00013163,2]
[338552104,1726731045816,-500.0,0.00013163,2]
[338552105,1726731045826,-500.0,0.00013163,2]
[338552106,1726731045835,-500.0,0.00013163,2]
[338552107,1726731045844,-500.0,0.00013163,2]
[338552108,1726731045854,-500.0,0.00013163,2]
[338552109,1726731045864,-500.0,0.00013163,2]
[338552110,1726731045873,-500.0,0.00013163,2]
[338552111,1726731045883,-500.0,0.00013163,2]
[338552112,1726731045893,-500.0,0.00013163,2]
[338552113,1726731045902,-289.27336262,0.00013163,2]
[338552114,1726731045914,-210.72663738,0.00013163,2]
[338552115,1726731045923,-1420.68,0.00013163,2]
[338552116,1726731045933,-1178.73,0.00013163,2]
[338552117,1726731045942,-500.0,0.00013163,2]
[338552118,1726731045951,-500.0,0.00013163,2]
[338552119,1726731045960,-500.0,0.00013163,2]
[338552120,1726731045970,-301.74402837,0.00013163,2]
[338552121,1726731045979,-500.0,0.00013163,2]
[338552122,1726731045989,-500.0,0.00013163,2]
[338552123,1726731045999,-500.0,0.00013163,2]
[338552124,1726731046013,-1035.0,0.00013163,2]
[338552125,1726731046026,-500.0,0.00013163,2]
[338552126,1726731046042,-500.0,0.00013163,2]
[338552127,1726731046108,-500.0,0.00013163,2]
[338552128,1726731046118,-500.0,0.00013163,2]
[338552129,1726731046127,-500.0,0.00013163,2]
[338552130,1726731046137,-771.96,0.00013163,2]
[338552131,1726731046147,-1163.53,0.00013163,2]
[338552132,1726731046156,-500.0,0.00013163,2]
[338552133,1726731046166,-500.0,0.00013163,2]
[338552134,1726731046176,-500.0,0.00013163,2]
[338552135,1726731046185,-1682.55,0.00013163,2]
[338552136,1726731046195,-500.0,0.00013163,2]
[338552137,1726731046205,-668.24,0.00013163,2]
[338552138,1726731046215,-500.0,0.00013163,2]
[338552139,1726731046225,-500.0,0.00013163,2]
[338552140,1726731046234,-767.06,0.00013163,2]
[338552141,1726731046244,-500.0,0.00013163,2]
[338552142,1726731046254,-669.31,0.00013163,2]
[338552143,1726731046263,-500.0,0.00013163,2]